bitfinex/quotes_SOLUSD_20240814
["timestamp","ask_amount","ask_price","bid_price","bid_amount"]
[1723650359904,66.43,147.53,147.37,52.6891]
[1723650360094,20.0,147.51,147.37,6.2591]
[1723650360294,20.0,147.47,147.32,53.0675]
[1723650360474,20.0,147.45,147.32,53.0675]
[1723650360680,20.0,147.43,147.28,46.43]
[1723650360879,46.43,147.44,147.28,46.43]
[1723650361073,0.12549,147.46,147.31,46.43]
[1723650361298,82.2874,147.47,147.34,46.43]
[1723650361299,15.8574,147.47,147.34,46.43]
[1723650361678,15.8574,147.47,147.4,46.43]
[1723650361905,15.1313,147.53,147.4,46.43]
[1723650362104,20.0,147.52,147.41,20.0]
[1723650362308,20.0,147.52,147.4,46.43]
[1723650362524,20.0,147.52,147.37,46.43]
[1723650362684,20.0,147.47,147.34,46.43]
[1723650362899,20.0,147.45,147.28,53.50834649]
[1723650363100,20.0,147.43,147.28,53.50834649]
[1723650363321,20.0,147.41,147.28,53.50834649]
[1723650363498,66.43,147.41,147.27,6.6375]
[1723650363694,46.43,147.41,147.27,6.6375]
[1723650363997,20.0,147.4,147.27,6.6375]
[1723650364222,20.0,147.38,147.22,6.5753]
[1723650364408,20.0,147.4,147.22,6.5753]
[1723650364611,20.0,147.4,147.24,46.43]
[1723650364922,20.0,147.4,147.22,6.5753]
[1723650364923,35.8867,147.42,147.27,46.43]
[1723650365211,15.8867,147.42,147.27,46.43]
[1723650365412,46.43,147.44,147.3,46.43]
[1723650365602,46.43,147.44,147.26,7.07631295]
[1723650365603,15.8867,147.49,147.36,46.43]
[1723650365810,15.8867,147.49,147.37,20.12549]
[1723650366123,20.0,147.46,147.37,0.12549]
[1723650366323,66.43,147.46,147.34,20.0]
[1723650367024,66.43,147.46,147.31,20.12549]
[1723650367025,20.0,147.44,147.31,20.12549]
[1723650367230,46.43,147.43,147.31,20.0]
[1723650368213,46.43,147.43,147.27,46.43]
[1723650368214,66.43,147.43,147.27,46.43]
[1723650369035,20.0,147.47,147.3,46.43]
[1723650369324,20.0,147.47,147.33,46.43]
[1723650369629,20.0,147.46,147.34,20.12549]
[1723650369932,20.0,147.46,147.34,20.0]
[1723650370098,20.0,147.48,147.34,20.0]
[1723650370304,20.0,147.48,147.35,45.12549]
[1723650370509,20.0,147.46,147.36,20.0]
[1723650370805,20.0,147.46,147.34,20.0]
[1723650371003,20.0,147.44,147.34,20.0]
[1723650371207,20.0,147.44,147.31,20.0]
[1723650371606,66.43,147.46,147.31,20.0]
[1723650371806,66.43,147.44,147.31,20.0]
[1723650372008,20.0,147.42,147.27,46.43]
[1723650372314,66.43,147.44,147.27,46.43]
[1723650372821,46.43,147.44,147.27,46.43]
[1723650373025,66.43,147.44,147.3,46.43]
[1723650373413,15.8867,147.49,147.19,23.85687256]
[1723650373414,66.43,147.41,147.27,46.43]
[1723650373941,36.5674,147.39,147.24,52.8442]
[1723650374810,16.5674,147.39,147.27,46.43]
[1723650375007,16.5674,147.39,147.3,46.43]
[1723650375228,16.5674,147.39,147.27,46.43]
[1723650375705,36.5674,147.39,147.27,46.43]
[1723650375910,36.5674,147.39,147.24,52.96969]
[1723650376110,16.5674,147.39,147.27,46.43]
[1723650376327,16.5674,147.39,147.28,65.37647]
[1723650376929,16.5674,147.39,147.28,65.25098]
[1723650377107,56.5674,147.39,147.24,52.8442]
[1723650377315,46.43,147.38,147.24,6.4142]
[1723650377913,20.0,147.36,147.22,7.07617688]
[1723650378117,66.43,147.36,147.21,46.43]
[1723650378726,20.0,147.34,147.21,46.43]
[1723650379544,20.0,147.34,147.15,1.18358725]
[1723650379545,46.43,147.23,147.15,1.18358725]
[1723650379837,46.43,147.23,147.11,29.76177414]
[1723650380043,46.43,147.23,147.16,7.07504412]
[1723650380255,46.43,147.23,147.08,46.43]
[1723650380406,20.0,147.24,147.11,46.43]
[1723650380812,20.0,147.26,147.11,46.43]
[1723650381044,66.43,147.27,147.08,46.43]
[1723650381045,66.43,147.24,147.08,46.43]
[1723650381666,20.0,147.26,147.13,46.43]
[1723650382139,36.11,147.28,147.13,46.43]
[1723650382643,16.11,147.28,147.16,46.43]
[1723650382936,36.11,147.28,147.16,46.43]
[1723650384534,4.4464,147.34,147.16,46.43]
[1723650384535,20.0,147.33,147.16,46.43]
[1723650384850,21.0057,147.34,147.19,46.43]
[1723650385025,21.0057,147.34,147.18,0.12549]
[1723650385026,16.5593,147.34,147.22,46.43]
[1723650385728,20.0,147.37,147.23,65.37647]
[1723650386111,20.0,147.35,147.23,20.37647]
[1723650386331,20.0,147.33,147.23,20.0]
[1723650386527,66.43,147.35,147.23,20.0]
[1723650386733,448.13,147.38,147.23,20.0]
[1723650386913,448.13,147.38,147.24,45.37647]
[1723650387115,448.13,147.38,147.24,45.25098]
[1723650387437,448.13,147.38,147.24,45.12549]
[1723650387643,381.7,147.38,147.25,66.68098]
[1723650387934,20.0,147.4,147.26,45.0]
[1723650388143,16.3971,147.41,147.28,46.43]
[1723650388314,16.3971,147.41,147.29,65.37647]
[1723650388512,278.9,147.43,147.29,65.37647]
[1723650389032,258.9,147.43,147.29,65.37647]
[1723650389339,36.5582,147.47,147.31,46.43]
[1723650389549,20.0,147.44,147.31,46.43]
[1723650389719,20.0,147.44,147.32,65.0]
[1723650389921,20.0,147.44,147.31,46.43]
[1723650390226,20.0,147.44,147.29,20.0]
[1723650390227,66.43,147.43,147.29,20.0]
[1723650391054,20.0,147.46,147.31,46.43]
[1723650391055,46.43,147.46,147.31,46.43]
[1723650391223,36.5582,147.47,147.32,65.25098]
[1723650391420,36.5582,147.47,147.33,0.12549]
[1723650391830,20.0,147.45,147.33,0.12549]
[1723650392029,20.0,147.45,147.32,65.12549]
[1723650392748,66.43,147.49,147.34,46.43]
[1723650392918,20.0,147.51,147.35,65.37647]
[1723650393224,20.0,147.51,147.36,0.12549]
[1723650393428,20.0,147.51,147.37,46.43]
[1723650393745,46.43,147.52,147.38,65.12549]
[1723650393945,20.0,147.51,147.38,65.12549]
[1723650394527,20.8412626,147.55,147.39,21.2866]
[1723650394726,20.8412626,147.55,147.4,111.68098]
[1723650395030,20.8412626,147.55,147.4,111.80647]
[1723650395250,0.8412626,147.55,147.4,111.80647]
[1723650395948,20.8412626,147.55,147.41,0.12549]
[1723650396172,66.43,147.53,147.4,20.25098]
[1723650396440,20.0,147.49,147.39,6.0747]
[1723650396671,66.43,147.47,147.34,6.5135]
[1723650396848,46.43,147.5,147.34,52.9435]
[1723650397955,46.43,147.5,147.35,20.0]
[1723650397956,20.0,147.49,147.35,20.0]
[1723650398539,20.0,147.47,147.35,20.0]
[1723650398866,20.0,147.47,147.34,52.9435]
[1723650398867,20.0,147.45,147.34,6.5135]
[1723650399016,46.43,147.47,147.34,6.5135]
[1723650399017,66.43,147.47,147.34,6.5135]
[1723650399220,66.43,147.49,147.34,6.5135]
[1723650399418,0.12549,147.5,147.37,46.43]
[1723650399650,20.0,147.51,147.37,46.43]
[1723650399822,46.43,147.52,147.37,46.43]
[1723650400243,46.43,147.52,147.34,6.5135]
[1723650400244,20.8412626,147.55,147.43,46.43]
[1723650400465,20.8412626,147.55,147.44,6.2315]
[1723650400840,0.8412626,147.55,147.44,6.2315]
[1723650402255,0.8412626,147.55,147.46,46.43]
[1723650402965,0.8412626,147.55,147.47,45.0]
[1723650403870,0.8412626,147.55,147.45,20.37647]
[1723650403871,0.8412626,147.55,147.45,20.12549]
[1723650404040,0.8412626,147.55,147.44,6.2315]
[1723650404041,20.0,147.53,147.44,6.2315]
[1723650404241,20.0,147.53,147.39,6.6484]
[1723650404767,46.43,147.54,147.39,6.6484]
[1723650404983,20.8412626,147.55,147.39,6.6484]
[1723650405268,0.8412626,147.55,147.4,65.12549]
[1723650405443,0.8412626,147.55,147.41,46.68098]
[1723650405763,0.8412626,147.55,147.42,65.12549]
[1723650405976,0.8412626,147.55,147.43,0.25098]
[1723650406185,0.8412626,147.55,147.41,46.43]
[1723650406186,20.0,147.54,147.41,46.43]
[1723650406471,20.12549,147.54,147.39,6.6484]
[1723650406644,20.12549,147.54,147.4,20.0]
[1723650406645,20.0,147.54,147.4,20.0]
[1723650406847,1.0922426,147.55,147.4,20.0]
[1723650406848,20.0,147.52,147.4,20.0]
[1723650407171,1.0922426,147.55,147.39,6.6484]
[1723650407172,20.0,147.5,147.39,6.6484]
[1723650407345,20.0,147.52,147.39,6.6484]
[1723650408775,20.0,147.5,147.39,6.6484]
[1723650409272,66.43,147.5,147.39,6.6484]
[1723650409472,62.57978,147.53,147.39,6.6484]
[1723650409674,20.0,147.52,147.4,20.0]
[1723650410164,62.3288,147.53,147.4,20.0]
[1723650410475,20.12549,147.54,147.4,20.0]
[1723650410476,20.0,147.54,147.4,66.43]
[1723650410663,20.0,147.54,147.41,45.0]
[1723650410859,20.8412626,147.55,147.41,45.0]
[1723650411065,20.8412626,147.55,147.42,20.12549]
[1723650411382,40.8412626,147.55,147.42,20.0]
[1723650411556,20.0,147.53,147.41,20.0]
[1723650411757,40.0,147.53,147.41,20.0]
[1723650411963,20.0,147.48,147.39,6.6484]
[1723650412257,66.43,147.48,147.39,6.6484]
[1723650412685,92.86,147.42,147.3,7.07243192]
[1723650412855,92.86,147.42,147.14,20.0]
[1723650412856,0.12549,147.39,147.24,6.5801]
[1723650413050,46.43,147.34,147.24,6.5801]
[1723650413684,66.43,147.34,147.24,6.5801]
[1723650414549,0.12549,147.35,147.24,6.5801]
[1723650414890,20.0,147.36,147.24,6.5801]
[1723650416573,20.0,147.39,147.24,6.5801]
[1723650416778,15.5079,147.47,147.26,46.55549]
[1723650416779,20.0,147.43,147.26,46.55549]
[1723650417085,20.0,147.43,147.25,20.12549]
[1723650417086,66.43,147.46,147.32,0.12549]
[1723650417261,20.0,147.46,147.32,20.0]
[1723650417462,46.43,147.49,147.33,0.12549]
[1723650417463,20.0,147.48,147.33,0.12549]
[1723650417662,20.0,147.48,147.33,45.50196]
[1723650418185,20.0,147.48,147.34,20.0]
[1723650418482,20.0,147.48,147.35,45.25098]
[1723650418683,20.0,147.48,147.36,20.0]
[1723650419063,46.43,147.49,147.36,20.0]
[1723650419277,20.0,147.48,147.37,0.25098]
[1723650419458,20.0,147.48,147.36,20.0]
[1723650419792,46.43,147.49,147.36,20.0]
[1723650420190,66.43,147.52,147.37,45.25098]
[1723650420360,50.8764,147.56,147.32,62.1184]
[1723650420361,46.43,147.49,147.32,62.1184]
[1723650420700,20.0,147.48,147.33,20.0]
[1723650421579,20.0,147.52,147.38,46.43]
[1723650421881,20.0,147.52,147.4,6.4739]
[1723650422266,20.0,147.47,147.4,6.4739]
[1723650422591,66.43,147.47,147.4,6.4739]
[1723650423683,46.43,147.47,147.4,6.4739]
[1723650424180,66.43,147.47,147.4,6.4739]
[1723650424389,20.0,147.43,147.35,6.4286]
[1723650424563,20.0,147.39,147.3,6.4286]
[1723650424962,46.43,147.41,147.3,6.4286]
[1723650425168,66.43,147.44,147.3,6.4286]
[1723650425491,66.43,147.44,147.3,52.8586]
[1723650425789,66.43,147.44,147.31,0.12549]
[1723650425967,66.43,147.44,147.3,52.60958]
[1723650426161,20.0,147.41,147.3,6.17958]
[1723650427190,0.12549,147.43,147.3,6.17958]
[1723650427484,20.0,147.5,147.36,46.43]
[1723650427807,20.0,147.49,147.38,16.0141]
[1723650427967,20.0,147.45,147.33,16.0141]
[1723650428464,20.0,147.45,147.34,20.0]
[1723650428788,20.0,147.45,147.33,16.0141]
[1723650428789,20.0,147.41,147.33,16.0141]
[1723650429089,66.43,147.43,147.34,6.6508]
[1723650429262,46.43,147.43,147.34,6.6508]
[1723650429466,46.43,147.46,147.34,6.6508]
[1723650429674,66.43,147.49,147.28,6.6508]
[1723650429675,46.43,147.4,147.28,6.6508]
[1723650430696,66.43,147.43,147.28,6.6508]
[1723650430894,66.43,147.43,147.28,53.0808]
[1723650431077,20.0,147.41,147.28,53.0808]
[1723650431298,20.0,147.39,147.28,6.6508]
[1723650431608,20.0,147.37,147.28,6.6508]
[1723650432391,20.0,147.33,147.28,6.6508]
[1723650432597,20.0,147.35,147.28,6.6508]
[1723650432975,20.0,147.33,147.28,6.6508]
[1723650433279,0.25098,147.36,147.23,15.9374]
[1723650433280,20.0,147.31,147.24,6.579]
[1723650434684,0.12549,147.32,147.24,6.579]
[1723650435001,66.43,147.35,147.24,6.579]
[1723650435208,20.0,147.38,147.25,46.43]
[1723650435400,20.0,147.38,147.24,6.579]
[1723650435401,66.43,147.35,147.24,6.579]
[1723650435906,66.43,147.35,147.19,6.3906]
[1723650435907,20.0,147.28,147.19,6.3906]
[1723650436112,20.0,147.26,147.19,6.3906]
[1723650436289,46.43,147.28,147.19,6.3906]
[1723650436482,20.0,147.26,147.19,6.3906]
[1723650436811,66.43,147.28,147.19,6.3906]
[1723650437319,20.0,147.26,147.19,6.3906]
[1723650437690,0.12549,147.25,147.19,6.3906]
[1723650438030,20.0,147.24,147.14,6.0773]
[1723650438232,20.0,147.22,147.14,6.0773]
[1723650438636,66.43,147.28,147.14,6.0773]
[1723650438802,20.0,147.26,147.15,46.43]
[1723650439007,20.0,147.26,147.14,6.0773]
[1723650440123,20.0,147.24,147.14,6.0773]
[1723650440626,20.0,147.22,147.14,6.0773]
[1723650441135,20.0,147.22,147.14,5.5773]
[1723650441338,20.0,147.24,147.14,5.5773]
[1723650442209,20.0,147.26,147.14,5.5773]
[1723650442615,66.43,147.28,147.14,5.5773]
[1723650442934,66.43,147.28,147.15,45.0]
[1723650443235,20.0,147.28,147.15,91.43]
[1723650443528,20.0,147.28,147.15,46.43]
[1723650443729,20.0,147.31,147.18,46.43]
[1723650444101,20.0,147.33,147.18,46.43]
[1723650444297,20.0,147.3,147.18,46.43]
[1723650444917,20.0,147.32,147.18,46.43]
[1723650445851,20.0,147.3,147.18,46.43]
[1723650446722,381.7,147.34,147.16,65.12549]
[1723650446723,20.0,147.28,147.16,65.12549]
[1723650446912,0.25098,147.31,147.16,65.0]
[1723650447115,0.12549,147.31,147.17,0.25098]
[1723650447320,66.43,147.32,147.17,0.25098]
[1723650447517,20.0,147.29,147.17,0.25098]
[1723650447725,20.0,147.31,147.16,65.12549]
[1723650448044,20.12549,147.33,147.18,6.3762]
[1723650448347,20.0,147.31,147.19,65.25098]
[1723650448525,20.12549,147.33,147.19,65.25098]
[1723650448835,20.0,147.33,147.2,46.55549]
[1723650449048,20.0,147.33,147.21,45.0]
[1723650449707,20.0,147.37,147.23,46.43]
[1723650449908,278.9,147.39,147.24,51.4695]
[1723650450151,20.0,147.36,147.24,6.4695]
[1723650450314,20.0,147.34,147.24,6.4695]
[1723650451221,20.0,147.32,147.24,6.4695]
[1723650451913,20.0,147.34,147.24,6.4695]
[1723650452739,20.0,147.32,147.24,6.4695]
[1723650453040,20.0,147.34,147.24,6.4695]
[1723650453739,20.0,147.32,147.24,6.4695]
[1723650454313,20.0,147.34,147.24,6.4695]
[1723650455039,20.0,147.32,147.24,6.4695]
[1723650455434,20.0,147.34,147.24,6.4695]
[1723650455614,66.43,147.36,147.24,6.4695]
[1723650455819,20.0,147.36,147.24,6.4695]
[1723650456717,20.0,147.38,147.25,46.43]
[1723650456931,20.0,147.4,147.25,91.43]
[1723650457255,20.0,147.37,147.25,91.43]
[1723650458051,20.0,147.37,147.24,6.4695]
[1723650458550,20.0,147.39,147.24,6.4695]
[1723650458736,20.0,147.39,147.25,45.37647]
[1723650459442,20.0,147.37,147.25,45.37647]
[1723650459751,20.0,147.39,147.25,45.0]
[1723650459921,20.0,147.39,147.26,0.25098]
[1723650460247,20.0,147.39,147.25,45.0]
[1723650460453,20.0,147.37,147.24,6.4695]
[1723650460829,20.0,147.32,147.24,6.4695]
[1723650461037,20.0,147.3,147.24,6.4695]
[1723650461726,0.12549,147.31,147.24,6.4695]
[1723650462141,20.0,147.32,147.24,6.4695]
[1723650462333,20.0,147.34,147.24,6.4695]
[1723650462537,20.12549,147.36,147.24,6.4695]
[1723650462728,20.0,147.36,147.24,6.4695]
[1723650462918,20.0,147.33,147.24,6.4695]
[1723650463119,20.0,147.35,147.24,6.4695]
[1723650463320,20.0,147.33,147.24,6.4695]
[1723650463550,20.0,147.35,147.24,6.4695]
[1723650463756,0.12549,147.36,147.24,6.4695]
[1723650464116,2.52429657,147.38,147.24,6.4695]
[1723650464339,20.0,147.37,147.25,45.0]
[1723650465137,20.0,147.37,147.24,6.4695]
[1723650465353,20.0,147.35,147.25,20.0]
[1723650465556,20.0,147.35,147.24,6.4695]
[1723650466235,20.0,147.37,147.24,6.4695]
[1723650466427,0.12549,147.36,147.24,6.4695]
[1723650467125,20.0,147.35,147.24,6.4695]
[1723650468050,20.0,147.32,147.24,6.4695]
[1723650468434,20.0,147.35,147.24,6.4695]
[1723650469126,20.0,147.33,147.24,6.4695]
[1723650469553,20.0,147.31,147.24,6.4695]
[1723650469756,20.0,147.33,147.24,6.4695]
[1723650469935,20.0,147.31,147.24,6.4695]
[1723650470956,0.12549,147.32,147.24,6.4695]
[1723650470957,20.0,147.29,147.24,6.4695]
[1723650471146,0.25098,147.28,147.19,6.2353]
[1723650471329,20.0,147.29,147.19,6.2353]
[1723650472344,20.0,147.31,147.19,45.0453]
[1723650472530,20.0,147.34,147.21,38.81]
[1723650473147,20.0,147.31,147.21,38.81]
[1723650473347,20.0,147.31,147.19,45.0453]
[1723650473831,0.12549,147.32,147.19,45.0453]
[1723650474032,58.81,147.33,147.19,45.0453]
[1723650474267,58.81,147.33,147.2,45.0]
[1723650474435,20.0,147.33,147.23,38.81]
[1723650475338,20.0,147.33,147.21,38.81]
[1723650475942,20.0,147.31,147.21,38.81]
[1723650476142,20.0,147.31,147.19,45.0453]
[1723650476639,38.93549,147.32,147.19,6.2353]
[1723650476640,20.0,147.29,147.19,6.2353]
[1723650476858,20.0,147.27,147.19,6.2353]
[1723650477068,20.0,147.29,147.19,6.2353]
[1723650477965,20.0,147.27,147.19,6.2353]
[1723650478662,20.0,147.31,147.19,6.2353]
[1723650478866,58.81,147.33,147.19,6.2353]
[1723650479161,20.0,147.31,147.21,38.81]
[1723650479363,20.0,147.33,147.21,38.81]
[1723650480357,20.0,147.31,147.21,38.81]
[1723650480866,20.0,147.33,147.26,38.81]
[1723650481256,20.0,147.33,147.24,38.81]
[1723650481455,20.0,147.31,147.21,38.81]
[1723650481654,20.0,147.33,147.21,38.81]
[1723650482049,20.0,147.33,147.22,45.0]
[1723650482946,20.0,147.33,147.21,38.81]
[1723650483348,20.0,147.31,147.21,38.81]
[1723650483577,20.0,147.29,147.19,6.2353]
[1723650483887,20.0,147.26,147.19,6.2353]
[1723650484877,20.0,147.24,147.13,45.0755]
[1723650485049,20.0,147.24,147.13,6.2655]
[1723650485248,20.0,147.24,147.13,45.0755]
[1723650485445,20.0,147.26,147.13,45.0755]
[1723650485673,20.0,147.22,147.13,6.2655]
[1723650486055,20.0,147.24,147.13,6.2655]
[1723650486258,20.0,147.22,147.13,6.2655]
[1723650487666,20.0,147.24,147.13,6.2655]
[1723650487879,38.81,147.26,147.13,6.2655]
[1723650487880,20.0,147.21,147.13,6.2655]
[1723650488186,20.0,147.23,147.13,6.2655]
[1723650489170,20.0,147.21,147.13,6.2655]
[1723650489370,20.0,147.21,147.1,38.81]
[1723650489667,0.12549,147.26,147.15,38.81]
[1723650489872,0.25098,147.25,147.15,38.81]
[1723650490058,20.12549,147.25,147.15,38.81]
[1723650490255,0.12549,147.26,147.15,38.81]
[1723650490472,20.0,147.25,147.15,38.81]
[1723650491274,55.1948,147.3,147.16,6.3105]
[1723650491275,20.0,147.27,147.16,6.3105]
[1723650491479,20.0,147.27,147.17,38.81]
[1723650492364,20.0,147.25,147.16,6.3105]
[1723650492570,20.0,147.23,147.16,6.3105]
[1723650492755,0.12549,147.22,147.16,6.3105]
[1723650492954,0.25098,147.22,147.16,6.3105]
[1723650493272,20.0,147.21,147.16,6.3105]
[1723650493673,0.12549,147.23,147.16,6.3105]
[1723650493860,20.0,147.25,147.16,6.3105]
[1723650494064,0.12549,147.26,147.16,45.1205]
[1723650494298,0.12549,147.26,147.18,38.81]
[1723650494950,20.0,147.27,147.18,38.81]
[1723650495156,20.0,147.29,147.18,38.81]
[1723650495552,20.0,147.24,147.16,6.3105]
[1723650495786,20.0,147.26,147.16,6.3105]
[1723650496157,0.12549,147.27,147.18,38.81]
[1723650496661,20.0,147.28,147.18,38.81]
[1723650497457,20.0,147.26,147.18,38.81]
[1723650497779,0.12549,147.27,147.16,45.1205]
[1723650497984,0.37647,147.27,147.16,45.1205]
[1723650498161,0.12549,147.27,147.16,45.1205]
[1723650498364,0.12549,147.29,147.19,16.2229]
[1723650498568,20.0,147.3,147.19,16.2229]
[1723650498569,20.0,147.3,147.2,38.81]
[1723650499268,20.0,147.3,147.22,38.81]
[1723650499982,20.0,147.3,147.2,38.81]
[1723650500387,20.0,147.27,147.19,16.2229]
[1723650501297,20.0,147.27,147.16,6.3105]
[1723650501298,20.0,147.25,147.16,45.1205]
[1723650501588,20.0,147.25,147.16,6.3105]
[1723650501589,0.12549,147.24,147.16,6.3105]
[1723650503795,20.0,147.23,147.16,6.3105]
[1723650504301,20.0,147.25,147.16,6.3105]
[1723650504490,381.7,147.28,147.18,38.81]
[1723650505103,401.7,147.28,147.18,38.81]
[1723650505392,381.7,147.28,147.18,38.81]
[1723650505801,401.7,147.28,147.18,38.81]
[1723650505983,381.7,147.28,147.18,38.81]
[1723650507002,401.7,147.28,147.18,38.81]
[1723650507372,381.7,147.28,147.18,38.81]
[1723650507700,381.7,147.28,147.2,38.81]
[1723650509592,381.7,147.28,147.18,38.81]
[1723650509593,401.7,147.28,147.18,38.81]
[1723650509794,20.0,147.28,147.19,20.0]
[1723650511401,0.12549,147.29,147.2,38.81]
[1723650512203,20.0,147.28,147.19,20.0]
[1723650512794,0.50196,147.29,147.2,38.81]
[1723650513094,0.37647,147.29,147.2,38.81]
[1723650513294,20.0,147.3,147.2,38.81]
[1723650513497,20.0,147.3,147.22,38.81]
[1723650517915,20.0,147.3,147.2,38.81]
[1723650518100,20.0,147.28,147.21,20.0]
[1723650518508,20.0,147.28,147.2,38.81]
[1723650519731,20.0,147.26,147.18,38.81]
[1723650519913,20.0,147.26,147.16,6.3105]
[1723650519914,0.12549,147.25,147.16,6.3105]
[1723650520090,20.0,147.24,147.16,6.3105]
[1723650520795,0.12549,147.25,147.16,45.1205]
[1723650523098,20.0,147.24,147.16,6.3105]
[1723650523716,0.12549,147.23,147.16,6.3105]
[1723650524210,0.12549,147.25,147.16,45.1205]
[1723650524415,20.12549,147.26,147.16,45.1205]
[1723650524610,15.6702,147.27,147.18,38.81]
[1723650524824,381.7,147.28,147.22,38.81]
[1723650525027,20.0,147.3,147.22,38.81]
[1723650525197,20.0,147.3,147.2,38.81]
[1723650526431,20.0,147.34,147.24,38.81]
[1723650527001,20.0,147.32,147.21,83.81]
[1723650527203,20.0,147.32,147.22,20.0]
[1723650528131,0.12549,147.31,147.22,20.0]
[1723650528307,20.0,147.34,147.23,45.0]
[1723650529424,20.0,147.34,147.24,6.2793]
[1723650529624,397.2458,147.36,147.27,38.81]
[1723650530205,25.1954,147.4,147.29,38.81]
[1723650530502,20.0,147.37,147.29,38.81]
[1723650530700,20.0,147.39,147.29,38.81]
[1723650531207,20.0,147.36,147.27,38.81]
[1723650531514,20.0,147.36,147.28,20.0]
[1723650532614,20.0,147.36,147.27,38.81]
[1723650532815,20.0,147.36,147.28,20.0]
[1723650533515,20.0,147.34,147.24,6.2793]
[1723650533723,0.12549,147.35,147.25,58.81]
[1723650533914,0.25098,147.35,147.25,58.81]
[1723650534113,20.0,147.36,147.25,58.81]
[1723650534936,0.12549,147.35,147.25,58.81]
[1723650535341,20.0,147.34,147.25,58.81]
[1723650536522,0.12549,147.33,147.25,20.0]
[1723650537034,0.12549,147.33,147.24,6.2793]
[1723650537209,20.0,147.32,147.25,20.0]
[1723650537530,20.0,147.32,147.16,47.49668967]
[1723650537531,20.0,147.27,147.16,47.49668967]
[1723650537736,20.0,147.27,147.16,44.8354]
[1723650538927,20.0,147.25,147.16,44.8354]
[1723650539105,0.12549,147.24,147.14,38.81]
[1723650539528,20.0,147.23,147.14,38.81]
[1723650540409,20.0,147.23,147.12,6.2901]
[1723650540410,20.0,147.21,147.12,45.1001]
[1723650540928,20.0,147.19,147.12,6.2901]
[1723650541241,20.0,147.21,147.09,30.0]
[1723650541409,0.12549,147.22,147.13,38.81]
[1723650541607,16.77719,147.23,147.15,38.81]
[1723650541836,401.7,147.25,147.15,38.81]
[1723650541837,381.7,147.25,147.15,38.81]
[1723650542126,401.7,147.25,147.15,38.81]
[1723650542316,0.25098,147.24,147.15,38.81]
[1723650542632,381.7,147.25,147.15,38.81]
[1723650542809,381.7,147.25,147.17,38.81]